Publisher Label,Publisher URI,"Organisational Unit","Beneficiary Name","Payment Date","Amount (£)","Irrecoverable VAT Amount (£)","Purpose","MerchantCategoryCode"
"Wolverhampton City Council","http://opendatacommunities.org/id/metropolitan-district-council/wolverhampton","Governance","1&1 Internet Limited","18/02/16","53.50","0.00","Computing - Internet","5045"
"Wolverhampton City Council","http://opendatacommunities.org/id/metropolitan-district-council/wolverhampton","Investments","Abokado Ludgate","19/11/15","1.61","0.00","Subsistence","5812"
"Wolverhampton City Council","http://opendatacommunities.org/id/metropolitan-district-council/wolverhampton","Investments","Abokado Ludgate","19/11/15","1.91","0.00","Subsistence","5812"
"Wolverhampton City Council","http://opendatacommunities.org/id/metropolitan-district-council/wolverhampton","Financial Services","ACCA","21/10/15","96.00","0.00","Training","8299"
"Wolverhampton City Council","http://opendatacommunities.org/id/metropolitan-district-council/wolverhampton","Finance","ACCA","05/02/16","220.00","0.00","Training","8299"
"Wolverhampton City Council","http://opendatacommunities.org/id/metropolitan-district-council/wolverhampton","Finance","Amazon UK Marketplace","29/01/16","8.62","0.00","Stationery","5943"
"Wolverhampton City Council","http://opendatacommunities.org/id/metropolitan-district-council/wolverhampton","Finance","Amazon UK Marketplace","30/01/16","2.69","0.00","Stationery","5943"
"Wolverhampton City Council","http://opendatacommunities.org/id/metropolitan-district-council/wolverhampton","Governance","Amazon UK Marketplace","10/02/16","33.94","0.00","Equipment - Purchase","5943"
"Wolverhampton City Council","http://opendatacommunities.org/id/metropolitan-district-council/wolverhampton","Governance","Amazon UK Marketplace","10/02/16","28.72","0.00","Equipment - Purchase","5943"
"Wolverhampton City Council","http://opendatacommunities.org/id/metropolitan-district-council/wolverhampton","Governance","Amazon UK Marketplace","11/02/16","26.95","0.00","Equipment - Purchase","5943"
"Wolverhampton City Council","http://opendatacommunities.org/id/metropolitan-district-council/wolverhampton","Investments","Applebees Fish London","26/01/16","20.00","0.00","Subsistence","5812"
"Wolverhampton City Council","http://opendatacommunities.org/id/metropolitan-district-council/wolverhampton","Governance","Argos Retail Group internet","10/02/16","16.99","0.00","Equipment - Purchase","5712"
"Wolverhampton City Council","http://opendatacommunities.org/id/metropolitan-district-council/wolverhampton","Investments","Arriva Trains","02/12/15","9.60","0.00","Public Transport","4112"
"Wolverhampton City Council","http://opendatacommunities.org/id/metropolitan-district-council/wolverhampton","Investments","Atelier Vivanda Pais France","05/01/16","48.93","0.00","Subsistence","5812"
"Wolverhampton City Council","http://opendatacommunities.org/id/metropolitan-district-council/wolverhampton","Governance","BHS","25/11/15","15.98","0.00","Equipment","5812"
"Wolverhampton City Council","http://opendatacommunities.org/id/metropolitan-district-council/wolverhampton","Governance","BHS","01/03/16","4.59","0.00","Subsistence","5812"
"Wolverhampton City Council","http://opendatacommunities.org/id/metropolitan-district-council/wolverhampton","Governance","Birmingham City Council","05/11/15","12.00","0.00","Publications","9399"
"Wolverhampton City Council","http://opendatacommunities.org/id/metropolitan-district-council/wolverhampton","Investments","cabcard Services","27/10/15","13.20","0.00","Public Transport","4121"
"Wolverhampton City Council","http://opendatacommunities.org/id/metropolitan-district-council/wolverhampton","Executive","Caffe Nero","27/10/15","4.73","0.00","Subsistence","5812"
"Wolverhampton City Council","http://opendatacommunities.org/id/metropolitan-district-council/wolverhampton","Investments","Caffe Nero","14/11/15","14.10","0.00","Subsistence","5812"
"Wolverhampton City Council","http://opendatacommunities.org/id/metropolitan-district-council/wolverhampton","Executive","Caffe Nero","09/12/15","11.30","0.00","Subsistence","5812"
"Wolverhampton City Council","http://opendatacommunities.org/id/metropolitan-district-council/wolverhampton","Pensions Operations","Caffe Nero","27/01/16","4.80","0.00","Subsistence","5812"
"Wolverhampton City Council","http://opendatacommunities.org/id/metropolitan-district-council/wolverhampton","Investments","Canteen","18/11/15","28.52","0.00","Subsistence","5812"
"Wolverhampton City Council","http://opendatacommunities.org/id/metropolitan-district-council/wolverhampton","Executive","Carluccio's 360","20/10/15","48.67","0.00","Subsistence","5812"
"Wolverhampton City Council","http://opendatacommunities.org/id/metropolitan-district-council/wolverhampton","Governance","Clintons","08/10/15","1.67","0.00","Equipment","5947"
"Wolverhampton City Council","http://opendatacommunities.org/id/metropolitan-district-council/wolverhampton","Investments","CityFleet Cab","19/11/15","13.20","0.00","Public Transport","4121"
"Wolverhampton City Council","http://opendatacommunities.org/id/metropolitan-district-council/wolverhampton","Investments","CityFleet Cab","19/11/15","1.67","0.00","Public Transport","4121"
"Wolverhampton City Council","http://opendatacommunities.org/id/metropolitan-district-council/wolverhampton","Governance","Clintons","25/11/15","5.40","0.00","Equipment","5947"
"Wolverhampton City Council","http://opendatacommunities.org/id/metropolitan-district-council/wolverhampton","Investments","CMT (UK) Ltd","05/11/15","13.92","0.00","Public Transport","4121"
"Wolverhampton City Council","http://opendatacommunities.org/id/metropolitan-district-council/wolverhampton","Executive","Costa coffee","27/10/15","4.00","0.00","Subsistence","5813"
"Wolverhampton City Council","http://opendatacommunities.org/id/metropolitan-district-council/wolverhampton","Executive","Costa Coffee","11/11/15","4.00","0.00","Subsistence","5813"
"Wolverhampton City Council","http://opendatacommunities.org/id/metropolitan-district-council/wolverhampton","Pensions Operations","Costa Coffee","10/12/15","6.25","0.00","Subsistence","5813"
"Wolverhampton City Council","http://opendatacommunities.org/id/metropolitan-district-council/wolverhampton","Investments","Davys Woolgate","14/12/15","24.25","0.00","Subsistence","5812"
"Wolverhampton City Council","http://opendatacommunities.org/id/metropolitan-district-council/wolverhampton","Executive","DDF Barrierline","10/11/15","2.25","0.00","Subsistence","5812"
"Wolverhampton City Council","http://opendatacommunities.org/id/metropolitan-district-council/wolverhampton","Executive","DDF Barrierline","10/11/15","1.41","0.00","Subsistence","5812"
"Wolverhampton City Council","http://opendatacommunities.org/id/metropolitan-district-council/wolverhampton","Executive","DDF Barrierline","16/11/15","4.62","0.00","Subsistence","5812"
"Wolverhampton City Council","http://opendatacommunities.org/id/metropolitan-district-council/wolverhampton","Executive","DDF Barrierline","06/10/15","17.76","0.00","Subsistence","5812"
"Wolverhampton City Council","http://opendatacommunities.org/id/metropolitan-district-council/wolverhampton","Executive","DDF Barrierline","22/10/15","8.93","0.00","Subsistence","5812"
"Wolverhampton City Council","http://opendatacommunities.org/id/metropolitan-district-council/wolverhampton","Executive","DDF Barrierline","05/01/16","8.19","0.00","Subsistence","5812"
"Wolverhampton City Council","http://opendatacommunities.org/id/metropolitan-district-council/wolverhampton","Investments","EL Asador De Aranda - Barcelona Spain","07/01/16","31.70","0.00","Subsistence","5812"
"Wolverhampton City Council","http://opendatacommunities.org/id/metropolitan-district-council/wolverhampton","Finance","Euromoney II PLC ONL","04/01/16","18.35","0.00","Stationery","5192"
"Wolverhampton City Council","http://opendatacommunities.org/id/metropolitan-district-council/wolverhampton","Investments","Financial Times","19/10/15","113.05","0.00","Subscription","5192"
"Wolverhampton City Council","http://opendatacommunities.org/id/metropolitan-district-council/wolverhampton","Investments","Financial Times","15/01/16","113.05","0.00","Subscription","5192"
"Wolverhampton City Council","http://opendatacommunities.org/id/metropolitan-district-council/wolverhampton","Investments","Four Seasons","11/11/15","25.00","0.00","Subsistence","5812"
"Wolverhampton City Council","http://opendatacommunities.org/id/metropolitan-district-council/wolverhampton","Investments","Go Carz","01/12/15","45.20","0.00","Public Transport","5812"
"Wolverhampton City Council","http://opendatacommunities.org/id/metropolitan-district-council/wolverhampton","Investments","Gourmet Coffee Bar","27/10/15","8.75","0.00","Subsistence","5812"
"Wolverhampton City Council","http://opendatacommunities.org/id/metropolitan-district-council/wolverhampton","Governance","Greggs","12/10/15","22.00","0.00","Subsistence","5812"
"Wolverhampton City Council","http://opendatacommunities.org/id/metropolitan-district-council/wolverhampton","Investments","Greggs","19/10/15","11.00","0.00","Subsistence","5812"
"Wolverhampton City Council","http://opendatacommunities.org/id/metropolitan-district-council/wolverhampton","Governance","Greggs","11/11/15","34.00","0.00","Subsistence","5812"
"Wolverhampton City Council","http://opendatacommunities.org/id/metropolitan-district-council/wolverhampton","Governance","Greggs","30/11/15","16.30","0.00","Subsistence","5812"
"Wolverhampton City Council","http://opendatacommunities.org/id/metropolitan-district-council/wolverhampton","Governance","Greggs","10/12/15","24.00","0.00","Subsistence","5812"
"Wolverhampton City Council","http://opendatacommunities.org/id/metropolitan-district-council/wolverhampton","Governance","Greggs","14/12/15","24.00","0.00","Subsistence","5812"
"Wolverhampton City Council","http://opendatacommunities.org/id/metropolitan-district-council/wolverhampton","Governence","Greggs","07/01/16","35.50","0.00","Subsistence","5812"
"Wolverhampton City Council","http://opendatacommunities.org/id/metropolitan-district-council/wolverhampton","Governence","Greggs","08/01/16","68.50","0.00","Subsistence","5812"
"Wolverhampton City Council","http://opendatacommunities.org/id/metropolitan-district-council/wolverhampton","Governence","Greggs","25/01/16","68.50","0.00","Subsistence","5812"
"Wolverhampton City Council","http://opendatacommunities.org/id/metropolitan-district-council/wolverhampton","Governence","Greggs","29/01/16","21.50","0.00","Subsistence","5812"
"Wolverhampton City Council","http://opendatacommunities.org/id/metropolitan-district-council/wolverhampton","Governance","Greggs","05/02/16","58.50","0.00","Subsistence","5812"
"Wolverhampton City Council","http://opendatacommunities.org/id/metropolitan-district-council/wolverhampton","Governance","Greggs","19/02/16","54.50","0.00","Subsistence","5812"
"Wolverhampton City Council","http://opendatacommunities.org/id/metropolitan-district-council/wolverhampton","Governance","Greggs","01/03/16","46.00","0.00","Subsistence","5812"
"Wolverhampton City Council","http://opendatacommunities.org/id/metropolitan-district-council/wolverhampton","Governance","GRO HM Passport Office","18/11/15","9.25","0.00","Publications","9399"
"Wolverhampton City Council","http://opendatacommunities.org/id/metropolitan-district-council/wolverhampton","Governance","GRO HM Passport Office","05/11/15","46.25","0.00","Publications","9399"
"Wolverhampton City Council","http://opendatacommunities.org/id/metropolitan-district-council/wolverhampton","Governance","GRO HM Passport Office","05/11/15","9.25","0.00","Publications","9399"
"Wolverhampton City Council","http://opendatacommunities.org/id/metropolitan-district-council/wolverhampton","Governance","GRO HM Passport Office","05/11/15","9.25","0.00","Publications","9399"
"Wolverhampton City Council","http://opendatacommunities.org/id/metropolitan-district-council/wolverhampton","Governance","GRO HM Passport Office","05/11/15","9.25","0.00","Publications","9399"
"Wolverhampton City Council","http://opendatacommunities.org/id/metropolitan-district-council/wolverhampton","Governance","GRO HM Passport Office","01/12/15","9.25","0.00","Publications","9399"
"Wolverhampton City Council","http://opendatacommunities.org/id/metropolitan-district-council/wolverhampton","Governance","GRO HM Passport Office","01/12/15","9.25","0.00","Publications","9399"
"Wolverhampton City Council","http://opendatacommunities.org/id/metropolitan-district-council/wolverhampton","Governance","GRO HM Passport Office","05/11/15","(9.25)","0.00","Publications","9399"
"Wolverhampton City Council","http://opendatacommunities.org/id/metropolitan-district-council/wolverhampton","Governance","GRO HM Passport Office","05/11/15","(9.25)","0.00","Publications","9399"
"Wolverhampton City Council","http://opendatacommunities.org/id/metropolitan-district-council/wolverhampton","Governance","GRO HM Passport Office","05/11/15","(9.25)","0.00","Publications","9399"
"Wolverhampton City Council","http://opendatacommunities.org/id/metropolitan-district-council/wolverhampton","Governance","GRO HM Passport Office","05/11/15","(9.25)","0.00","Publications","9399"
"Wolverhampton City Council","http://opendatacommunities.org/id/metropolitan-district-council/wolverhampton","Governance","GRO HM Passport Office","15/12/15","9.25","0.00","Publications","9399"
"Wolverhampton City Council","http://opendatacommunities.org/id/metropolitan-district-council/wolverhampton","Governance","GRO HM Passport Office","30/12/15","9.25","0.00","Publications","9399"
"Wolverhampton City Council","http://opendatacommunities.org/id/metropolitan-district-council/wolverhampton","Finance","GRO HM Passport Office","01/12/15","(9.25)","0.00","Publications","9399"
"Wolverhampton City Council","http://opendatacommunities.org/id/metropolitan-district-council/wolverhampton","Finance","GRO HM Passport Office","18/02/16","27.75","0.00","Publications","9399"
"Wolverhampton City Council","http://opendatacommunities.org/id/metropolitan-district-council/wolverhampton","Finance","GRO HM Passport Office","19/02/16","286.75","0.00","Publications","9399"
"Wolverhampton City Council","http://opendatacommunities.org/id/metropolitan-district-council/wolverhampton","Finance","GRO HM Passport Office","19/02/16","9.25","0.00","Publications","9399"
"Wolverhampton City Council","http://opendatacommunities.org/id/metropolitan-district-council/wolverhampton","Financial Services","GRO HM Passport Office","13/10/15","9.25","0.00","Publications","9399"
"Wolverhampton City Council","http://opendatacommunities.org/id/metropolitan-district-council/wolverhampton","Investments","Haz Plantation Place","01/12/15","25.00","0.00","Subsistence","5812"
"Wolverhampton City Council","http://opendatacommunities.org/id/metropolitan-district-council/wolverhampton","Investments","Heathrow Express Hounslow","04/01/16","22.00","0.00","Public Transport","4112"
"Wolverhampton City Council","http://opendatacommunities.org/id/metropolitan-district-council/wolverhampton","Investments","Hotel California - Paris France","07/01/16","289.63","0.00","Accommodation","7011"
"Wolverhampton City Council","http://opendatacommunities.org/id/metropolitan-district-council/wolverhampton","Investments","IBIS London Excel","15/01/16","40.83","0.00","Accommodation","7011"
"Wolverhampton City Council","http://opendatacommunities.org/id/metropolitan-district-council/wolverhampton","Governance","Iceland","01/03/16","5.57","0.00","Subsistence","5812"
"Wolverhampton City Council","http://opendatacommunities.org/id/metropolitan-district-council/wolverhampton","Governance","Issuu","27/12/15","13.10","0.00","Computing - Internet","4816"
"Wolverhampton City Council","http://opendatacommunities.org/id/metropolitan-district-council/wolverhampton","Governance","Issuu","27/02/16","13.93","0.00","Subscriptions","4816"
"Wolverhampton City Council","http://opendatacommunities.org/id/metropolitan-district-council/wolverhampton","Investments","iZ","19/11/15","18.33","0.00","Subsistence","5812"
"Wolverhampton City Council","http://opendatacommunities.org/id/metropolitan-district-council/wolverhampton","Investments","Joy King Lau London","04/01/16","17.70","0.00","Subsistence","5812"
"Wolverhampton City Council","http://opendatacommunities.org/id/metropolitan-district-council/wolverhampton","Executive","Kensington Close Hotel","08/12/15","101.15","0.00","Accomodation Costs","7011"
"Wolverhampton City Council","http://opendatacommunities.org/id/metropolitan-district-council/wolverhampton","Financial Services","Kensington Hotel","29/12/15","107.00","0.00","Accomodation Costs","7011"
"Wolverhampton City Council","http://opendatacommunities.org/id/metropolitan-district-council/wolverhampton","Investments","Le Balzac - Paris France","06/01/16","27.48","0.00","Subsistence","5812"
"Wolverhampton City Council","http://opendatacommunities.org/id/metropolitan-district-council/wolverhampton","Investments","Leon","05/11/15","12.90","0.00","Subsistence","5812"
"Wolverhampton City Council","http://opendatacommunities.org/id/metropolitan-district-council/wolverhampton","Pensions Operations","London Midland","10/12/15","8.10","0.00","Public Transport","4112"
"Wolverhampton City Council","http://opendatacommunities.org/id/metropolitan-district-council/wolverhampton","Executive","London Underground","10/11/15","50.00","0.00","Public Transport","4112"
"Wolverhampton City Council","http://opendatacommunities.org/id/metropolitan-district-council/wolverhampton","Executive","London Underground","16/11/15","12.00","0.00","Public Transport","4112"
"Wolverhampton City Council","http://opendatacommunities.org/id/metropolitan-district-council/wolverhampton","Investments","London Underground","01/12/15","10.00","0.00","Public Transport","4112"
"Wolverhampton City Council","http://opendatacommunities.org/id/metropolitan-district-council/wolverhampton","Investments","London Underground","05/11/15","20.00","0.00","Public Transport","4112"
"Wolverhampton City Council","http://opendatacommunities.org/id/metropolitan-district-council/wolverhampton","Investments","London Underground","10/11/15","20.00","0.00","Public Transport","4112"
"Wolverhampton City Council","http://opendatacommunities.org/id/metropolitan-district-council/wolverhampton","Investments","London Underground","01/12/15","30.00","0.00","Public Transport","4112"
"Wolverhampton City Council","http://opendatacommunities.org/id/metropolitan-district-council/wolverhampton","Pensions Operations","London Underground","04/11/15","10.00","0.00","Public Transport","4112"
"Wolverhampton City Council","http://opendatacommunities.org/id/metropolitan-district-council/wolverhampton","Investments","London Underground","07/12/15","10.00","0.00","Public Transport","4112"
"Wolverhampton City Council","http://opendatacommunities.org/id/metropolitan-district-council/wolverhampton","Investments","London Underground","10/12/15","10.00","0.00","Public Transport","4112"
"Wolverhampton City Council","http://opendatacommunities.org/id/metropolitan-district-council/wolverhampton","Investments","London Underground","11/12/15","10.00","0.00","Public Transport","4112"
"Wolverhampton City Council","http://opendatacommunities.org/id/metropolitan-district-council/wolverhampton","Investments","LUL ticket Machine","21/10/15","20.00","0.00","Public Transport","4112"
"Wolverhampton City Council","http://opendatacommunities.org/id/metropolitan-district-council/wolverhampton","Pensions Operations","LUL ticket Machine","14/10/15","20.00","0.00","Public Transport","4112"
"Wolverhampton City Council","http://opendatacommunities.org/id/metropolitan-district-council/wolverhampton","Investments","LUL ticket Machine","12/10/15","10.00","0.00","Public Transport","4112"
"Wolverhampton City Council","http://opendatacommunities.org/id/metropolitan-district-council/wolverhampton","Investments","LUL ticket Machine","09/10/15","20.00","0.00","Public Transport","4112"
"Wolverhampton City Council","http://opendatacommunities.org/id/metropolitan-district-council/wolverhampton","Executive","LUL ticket Machine","18/02/16","12.10","0.00","Public Transport","4112"
"Wolverhampton City Council","http://opendatacommunities.org/id/metropolitan-district-council/wolverhampton","Investments","LUL ticket Machine","26/01/16","10.00","0.00","Public Transport","4112"
"Wolverhampton City Council","http://opendatacommunities.org/id/metropolitan-district-council/wolverhampton","Pensions Operations","LUL ticket Machine","27/01/16","12.10","0.00","Public Transport","4112"
"Wolverhampton City Council","http://opendatacommunities.org/id/metropolitan-district-council/wolverhampton","Pensions Operations","LUL ticket Machine","15/01/16","20.00","0.00","Public Transport","4112"
"Wolverhampton City Council","http://opendatacommunities.org/id/metropolitan-district-council/wolverhampton","Pensions Operations","LUL ticket Machine","15/01/16","20.00","0.00","Public Transport","4112"
"Wolverhampton City Council","http://opendatacommunities.org/id/metropolitan-district-council/wolverhampton","Investments","LUL Ticket Office","08/01/16","20.00","0.00","Public Transport","4112"
"Wolverhampton City Council","http://opendatacommunities.org/id/metropolitan-district-council/wolverhampton","Executive","LUL ticket Machine","26/01/16","30.00","0.00","Public Transport","4112"
"Wolverhampton City Council","http://opendatacommunities.org/id/metropolitan-district-council/wolverhampton","Investments","Mail Boxes Etc UK","18/12/15","11.60","0.00","Postage","4215"
"Wolverhampton City Council","http://opendatacommunities.org/id/metropolitan-district-council/wolverhampton","Investments","Maritim Hotel - Stuttgart","05/01/16","131.27","0.00","Accommodation","7011"
"Wolverhampton City Council","http://opendatacommunities.org/id/metropolitan-district-council/wolverhampton","Investments","Martin McColl","16/11/15","45.00","0.00","Public Transport","4112"
"Wolverhampton City Council","http://opendatacommunities.org/id/metropolitan-district-council/wolverhampton","Pensions Operations","Metrolink","10/12/15","10.80","0.00","Public Transport","4112"
"Wolverhampton City Council","http://opendatacommunities.org/id/metropolitan-district-council/wolverhampton","Executive","Meze Meze","07/12/15","7.80","0.00","Public Transport","4112"
"Wolverhampton City Council","http://opendatacommunities.org/id/metropolitan-district-council/wolverhampton","Governence","Network West Midlands","07/01/16","50.00","0.00","Public Transport","4112"
"Wolverhampton City Council","http://opendatacommunities.org/id/metropolitan-district-council/wolverhampton","Investments","Nikkei Hong Kong","13/10/15","92.35","0.00","Subscription","8999"
"Wolverhampton City Council","http://opendatacommunities.org/id/metropolitan-district-council/wolverhampton","Investments","Nottinghamshire CC","29/01/16","3.15","0.00","Subsistence","9399"
"Wolverhampton City Council","http://opendatacommunities.org/id/metropolitan-district-council/wolverhampton","Finance","Office Depot","09/02/16","160.44","0.00","Stationery","5943"
"Wolverhampton City Council","http://opendatacommunities.org/id/metropolitan-district-council/wolverhampton","Financial Services","Office Depot","15/10/15","322.06","0.00","Stationery","5943"
"Wolverhampton City Council","http://opendatacommunities.org/id/metropolitan-district-council/wolverhampton","Financial Services","Office Depot","18/11/15","238.65","0.00","Stationery","5943"
"Wolverhampton City Council","http://opendatacommunities.org/id/metropolitan-district-council/wolverhampton","Financial Services","Office Depot","22/12/15","147.45","0.00","Stationery","5943"
"Wolverhampton City Council","http://opendatacommunities.org/id/metropolitan-district-council/wolverhampton","Financial Services","Office Depot","24/12/15","67.25","0.00","Stationery","5943"
"Wolverhampton City Council","http://opendatacommunities.org/id/metropolitan-district-council/wolverhampton","Finance","Office Depot","02/03/16","202.48","0.00","stationery","5943"
"Wolverhampton City Council","http://opendatacommunities.org/id/metropolitan-district-council/wolverhampton","Finance","Office Depot","09/01/16","2.90","0.00","Stationery","5943"
"Wolverhampton City Council","http://opendatacommunities.org/id/metropolitan-district-council/wolverhampton","Finance","Office Depot","22/01/16","181.93","0.00","Stationery","5943"
"Wolverhampton City Council","http://opendatacommunities.org/id/metropolitan-district-council/wolverhampton","Finance","Office Depot","22/01/16","8.38","0.00","Stationery","5943"
"Wolverhampton City Council","http://opendatacommunities.org/id/metropolitan-district-council/wolverhampton","Investments","Palmers Lodge","04/12/15","21.00","0.00","Accomodation Costs","7011"
"Wolverhampton City Council","http://opendatacommunities.org/id/metropolitan-district-council/wolverhampton","Financial Services","Parking Arcadian","21/10/15","7.50","0.00","Parking Fees","7523"
"Wolverhampton City Council","http://opendatacommunities.org/id/metropolitan-district-council/wolverhampton","Pensions Operations","Patisserie Valerie  London","15/01/16","5.10","0.00","Subsistence","5812"
"Wolverhampton City Council","http://opendatacommunities.org/id/metropolitan-district-council/wolverhampton","Investments","Pizza Express","18/11/15","19.00","0.00","Subsistence","5812"
"Wolverhampton City Council","http://opendatacommunities.org/id/metropolitan-district-council/wolverhampton","Investments","POD","19/11/15","3.71","0.00","Subsistence","5812"
"Wolverhampton City Council","http://opendatacommunities.org/id/metropolitan-district-council/wolverhampton","Investments","POD","19/11/15","7.73","0.00","Subsistence","5812"
"Wolverhampton City Council","http://opendatacommunities.org/id/metropolitan-district-council/wolverhampton","Governance","Post Office","05/11/15","14.50","0.00","Postage","9402"
"Wolverhampton City Council","http://opendatacommunities.org/id/metropolitan-district-council/wolverhampton","Financial Services","Post Office","11/12/15","8.70","0.00","Postage","9402"
"Wolverhampton City Council","http://opendatacommunities.org/id/metropolitan-district-council/wolverhampton","Governance","Poundworld Retail","08/02/16","4.17","0.00","Equipment - Purchase","5310"
"Wolverhampton City Council","http://opendatacommunities.org/id/metropolitan-district-council/wolverhampton","Investments","PP:David Davies","04/11/15","16.40","0.00","Subsistence","5812"
"Wolverhampton City Council","http://opendatacommunities.org/id/metropolitan-district-council/wolverhampton","Investments","Premier Inn","18/11/15","6.25","0.00","Subsistence","7011"
"Wolverhampton City Council","http://opendatacommunities.org/id/metropolitan-district-council/wolverhampton","Finance","Premier INN","28/01/16","90.83","0.00","Accomodation","7011"
"Wolverhampton City Council","http://opendatacommunities.org/id/metropolitan-district-council/wolverhampton","Governence","Premier Inn London","15/01/16","162.00","0.00","Accommodation","7011"
"Wolverhampton City Council","http://opendatacommunities.org/id/metropolitan-district-council/wolverhampton","Governence","Premier Inn London","22/01/16","(162.00)","0.00","Accommodation","7011"
"Wolverhampton City Council","http://opendatacommunities.org/id/metropolitan-district-council/wolverhampton","Investments","Pret A Manger","21/10/15","6.17","0.00","Subsistence","5812"
"Wolverhampton City Council","http://opendatacommunities.org/id/metropolitan-district-council/wolverhampton","Investments","Pret A Manger","12/10/15","4.49","0.00","Subsistence","5812"
"Wolverhampton City Council","http://opendatacommunities.org/id/metropolitan-district-council/wolverhampton","Investments","Pret A Manger","13/10/15","5.71","0.00","Subsistence","5812"
"Wolverhampton City Council","http://opendatacommunities.org/id/metropolitan-district-council/wolverhampton","Financial Services","Pret A Manger","21/10/15","10.89","0.00","Subsistence","5812"
"Wolverhampton City Council","http://opendatacommunities.org/id/metropolitan-district-council/wolverhampton","Investments","Pret a Manger","01/12/15","6.75","0.00","Subsistence","5812"
"Wolverhampton City Council","http://opendatacommunities.org/id/metropolitan-district-council/wolverhampton","Investments","Pret a Manger","05/11/15","3.83","0.00","Subsistence","5812"
"Wolverhampton City Council","http://opendatacommunities.org/id/metropolitan-district-council/wolverhampton","Investments","Pret a Manger","05/11/15","1.99","0.00","Subsistence","5812"
"Wolverhampton City Council","http://opendatacommunities.org/id/metropolitan-district-council/wolverhampton","Investments","Pret a Manger","05/11/15","3.71","0.00","Subsistence","5812"
"Wolverhampton City Council","http://opendatacommunities.org/id/metropolitan-district-council/wolverhampton","Pensions Operations","Pret a Manger","04/11/15","3.20","0.00","Subsistence","5812"
"Wolverhampton City Council","http://opendatacommunities.org/id/metropolitan-district-council/wolverhampton","Investments","PRET A MANGER","11/01/16","2.71","0.00","Subsistence","5812"
"Wolverhampton City Council","http://opendatacommunities.org/id/metropolitan-district-council/wolverhampton","Investments","PRET A MANGER","11/01/16","3.15","0.00","Subsistence","5812"
"Wolverhampton City Council","http://opendatacommunities.org/id/metropolitan-district-council/wolverhampton","Investments","Pret A Manger","28/01/16","3.54","0.00","Subsistence","5812"
"Wolverhampton City Council","http://opendatacommunities.org/id/metropolitan-district-council/wolverhampton","Investments","Pumpkin Caf�","12/11/15","4.89","0.00","Subsistence","5812"
"Wolverhampton City Council","http://opendatacommunities.org/id/metropolitan-district-council/wolverhampton","Investments","Pure Cheapside","07/12/15","8.05","0.00","Subsistence","5812"
"Wolverhampton City Council","http://opendatacommunities.org/id/metropolitan-district-council/wolverhampton","Investments","Radio Taxis Group","02/12/15","17.00","0.00","Public Transport","4121"
"Wolverhampton City Council","http://opendatacommunities.org/id/metropolitan-district-council/wolverhampton","Investments","Radio Taxis Group","02/12/15","1.67","0.00","Public Transport","4121"
"Wolverhampton City Council","http://opendatacommunities.org/id/metropolitan-district-council/wolverhampton","Finance","Registrars office","19/02/16","31.00","0.00","Publications","9399"
"Wolverhampton City Council","http://opendatacommunities.org/id/metropolitan-district-council/wolverhampton","Finance","Registrars office","19/02/16","(3.00)","0.00","Publications","9399"
"Wolverhampton City Council","http://opendatacommunities.org/id/metropolitan-district-council/wolverhampton","Finance","Registrars office","28/02/16","8.00","0.00","Publications","9399"
"Wolverhampton City Council","http://opendatacommunities.org/id/metropolitan-district-council/wolverhampton","Investments","Royal Berkshire Hotel","03/12/15","500.79","0.00","Accomodation Costs","7011"
"Wolverhampton City Council","http://opendatacommunities.org/id/metropolitan-district-council/wolverhampton","Financial Services","Royal Mail","30/12/15","1.50","0.00","Postage","9402"
"Wolverhampton City Council","http://opendatacommunities.org/id/metropolitan-district-council/wolverhampton","Governence","Ryman","12/01/16","13.32","0.00","Stationery","5943"
"Wolverhampton City Council","http://opendatacommunities.org/id/metropolitan-district-council/wolverhampton","Governence","Ryman","20/01/16","22.48","0.00","Stationery","5943"
"Wolverhampton City Council","http://opendatacommunities.org/id/metropolitan-district-council/wolverhampton","Governance","Sainsburys","06/10/15","31.05","0.00","Subsistence","5411"
"Wolverhampton City Council","http://opendatacommunities.org/id/metropolitan-district-council/wolverhampton","Investments","St Pancras","17/11/15","9.60","0.00","Subsistence","5812"
"Wolverhampton City Council","http://opendatacommunities.org/id/metropolitan-district-council/wolverhampton","Financial Services","Starbucks","27/10/15","3.80","0.00","Subsistence","5812"
"Wolverhampton City Council","http://opendatacommunities.org/id/metropolitan-district-council/wolverhampton","Investments","Starbucks","02/12/15","7.90","0.00","Subsistence","5812"
"Wolverhampton City Council","http://opendatacommunities.org/id/metropolitan-district-council/wolverhampton","Executive","Starbucks","18/01/16","4.40","0.00","Subsistence","5812"
"Wolverhampton City Council","http://opendatacommunities.org/id/metropolitan-district-council/wolverhampton","Executive","Starbucks","18/01/16","2.58","0.00","Subsistence","5812"
"Wolverhampton City Council","http://opendatacommunities.org/id/metropolitan-district-council/wolverhampton","Executive","Starbucks Birmingham","17/02/16","5.86","0.00","Subsistence","5812"
"Wolverhampton City Council","http://opendatacommunities.org/id/metropolitan-district-council/wolverhampton","Finance","Stone Hall Adult","18/02/16","42.00","0.00","Publications","8299"
"Wolverhampton City Council","http://opendatacommunities.org/id/metropolitan-district-council/wolverhampton","Finance","Stone Hall Adult","22/02/16","(3.00)","0.00","Publications","8299"
"Wolverhampton City Council","http://opendatacommunities.org/id/metropolitan-district-council/wolverhampton","Governance","SURVEYMONKEY.COM","03/12/15","299.00","0.00","Computing - Internet","5045"
"Wolverhampton City Council","http://opendatacommunities.org/id/metropolitan-district-council/wolverhampton","Investments","SW Trains","30/11/15","11.90","0.00","Public Transport","4112"
"Wolverhampton City Council","http://opendatacommunities.org/id/metropolitan-district-council/wolverhampton","Governance","Talk Talk Business","07/12/15","109.20","0.00","Computing - Internet","4816"
"Wolverhampton City Council","http://opendatacommunities.org/id/metropolitan-district-council/wolverhampton","Governence","TALK TALK BUSNINESS","04/01/16","45.50","0.00","Computing - Internet","4816"
"Wolverhampton City Council","http://opendatacommunities.org/id/metropolitan-district-council/wolverhampton","Investments","Taxi","17/11/15","19.68","0.00","Public Transport","4121"
"Wolverhampton City Council","http://opendatacommunities.org/id/metropolitan-district-council/wolverhampton","Investments","Taxi Fare","04/11/15","8.40","0.00","Public Transport","4121"
"Wolverhampton City Council","http://opendatacommunities.org/id/metropolitan-district-council/wolverhampton","Investments","Taxi Fare","11/12/15","13.20","0.00","Public Transport","4121"
"Wolverhampton City Council","http://opendatacommunities.org/id/metropolitan-district-council/wolverhampton","Investments","Taylor Street Baristas","27/10/15","4.83","0.00","Subsistence","5812"
"Wolverhampton City Council","http://opendatacommunities.org/id/metropolitan-district-council/wolverhampton","Governance","Tesco Stores","04/02/16","10.50","0.00","Subsistence","5411"
"Wolverhampton City Council","http://opendatacommunities.org/id/metropolitan-district-council/wolverhampton","Governance","Tesco Stores","09/02/16","3.84","0.00","Subsistence","5411"
"Wolverhampton City Council","http://opendatacommunities.org/id/metropolitan-district-council/wolverhampton","Governance","Tesco Stores","13/10/15","1.78","0.00","Subsistence","5411"
"Wolverhampton City Council","http://opendatacommunities.org/id/metropolitan-district-council/wolverhampton","Governance","Tesco Stores","09/12/15","6.85","0.00","Subsistence","5411"
"Wolverhampton City Council","http://opendatacommunities.org/id/metropolitan-district-council/wolverhampton","Governance","Tesco Stores","09/12/15","0.88","0.00","Subsistence","5411"
"Wolverhampton City Council","http://opendatacommunities.org/id/metropolitan-district-council/wolverhampton","Governance","Tesco Stores","14/12/15","2.50","0.00","Subsistence","5411"
"Wolverhampton City Council","http://opendatacommunities.org/id/metropolitan-district-council/wolverhampton","Governance","Tesco Stores","14/12/15","6.40","0.00","Subsistence","5411"
"Wolverhampton City Council","http://opendatacommunities.org/id/metropolitan-district-council/wolverhampton","Governence","Tesco Stores","05/01/16","17.87","0.00","Subsistence","5411"
"Wolverhampton City Council","http://opendatacommunities.org/id/metropolitan-district-council/wolverhampton","Governence","Tesco Stores","07/01/16","4.00","0.00","Subsistence","5411"
"Wolverhampton City Council","http://opendatacommunities.org/id/metropolitan-district-council/wolverhampton","Governence","Tesco Stores","08/01/16","9.56","0.00","Subsistence","5411"
"Wolverhampton City Council","http://opendatacommunities.org/id/metropolitan-district-council/wolverhampton","Governence","Tesco Stores","20/01/16","4.75","0.00","Subsistence","5411"
"Wolverhampton City Council","http://opendatacommunities.org/id/metropolitan-district-council/wolverhampton","Governence","Tesco Stores","25/01/16","14.50","0.00","Subsistence","5411"
"Wolverhampton City Council","http://opendatacommunities.org/id/metropolitan-district-council/wolverhampton","Governence","Tesco Stores","29/01/16","3.00","0.00","Subsistence","5411"
"Wolverhampton City Council","http://opendatacommunities.org/id/metropolitan-district-council/wolverhampton","Governance","Tesco Stores","19/02/16","17.46","0.00","Subsistence","5411"
"Wolverhampton City Council","http://opendatacommunities.org/id/metropolitan-district-council/wolverhampton","Governance","Tesco Stores","11/11/15","3.89","0.00","Subsistence","5411"
"Wolverhampton City Council","http://opendatacommunities.org/id/metropolitan-district-council/wolverhampton","Governance","Tesco Stores","11/11/15","3.99","0.00","Subsistence","5411"
"Wolverhampton City Council","http://opendatacommunities.org/id/metropolitan-district-council/wolverhampton","Governance","Tesco Stores","30/11/15","27.52","0.00","Subsistence","5411"
"Wolverhampton City Council","http://opendatacommunities.org/id/metropolitan-district-council/wolverhampton","Governance","Tesco Stores","30/11/15","0.17","0.00","Subsistence","5411"
"Wolverhampton City Council","http://opendatacommunities.org/id/metropolitan-district-council/wolverhampton","Governance","The Flower Stall","08/10/15","25.00","0.00","Equipment","5193"
"Wolverhampton City Council","http://opendatacommunities.org/id/metropolitan-district-council/wolverhampton","Investments","The Thompson","13/11/15","6.71","0.00","Subsistence","7011"
"Wolverhampton City Council","http://opendatacommunities.org/id/metropolitan-district-council/wolverhampton","Investments","The Thompson","13/11/15","883.11","0.00","Accomodation Costs","7011"
"Wolverhampton City Council","http://opendatacommunities.org/id/metropolitan-district-council/wolverhampton","Financial Services","Timpson","05/10/15","10.00","0.00","Equipment","7251"
"Wolverhampton City Council","http://opendatacommunities.org/id/metropolitan-district-council/wolverhampton","Investments","Trainline","30/11/15","301.51","0.00","Public Transport","4112"
"Wolverhampton City Council","http://opendatacommunities.org/id/metropolitan-district-council/wolverhampton","Governence","TRAINLINE","07/01/16","110.16","0.00","Public Transport","4112"
"Wolverhampton City Council","http://opendatacommunities.org/id/metropolitan-district-council/wolverhampton","Investments","Trainline","10/01/16","202.47","0.00","Public Transport","4112"
"Wolverhampton City Council","http://opendatacommunities.org/id/metropolitan-district-council/wolverhampton","Investments","Trainline","18/01/16","19.63","0.00","Public Transport","4112"
"Wolverhampton City Council","http://opendatacommunities.org/id/metropolitan-district-council/wolverhampton","Executive","Verifone Taxi","02/12/15","9.40","0.00","Public Transport","4121"
"Wolverhampton City Council","http://opendatacommunities.org/id/metropolitan-district-council/wolverhampton","Executive","Verifone Taxi","04/12/15","10.80","0.00","Public Transport","4121"
"Wolverhampton City Council","http://opendatacommunities.org/id/metropolitan-district-council/wolverhampton","Investments","Virgin Trains","02/10/15","115.30","0.00","Public Transport","4112"
"Wolverhampton City Council","http://opendatacommunities.org/id/metropolitan-district-council/wolverhampton","Investments","Virgin Trains","09/10/15","53.60","0.00","Public Transport","4112"
"Wolverhampton City Council","http://opendatacommunities.org/id/metropolitan-district-council/wolverhampton","Investments","Virgin Trains","13/10/15","43.80","0.00","Public Transport","4112"
"Wolverhampton City Council","http://opendatacommunities.org/id/metropolitan-district-council/wolverhampton","Financial Services","Virgin Trains","07/10/15","177.00","0.00","Public Transport","4112"
"Wolverhampton City Council","http://opendatacommunities.org/id/metropolitan-district-council/wolverhampton","Financial Services","Virgin Trains","09/10/15","105.50","0.00","Public Transport","4112"
"Wolverhampton City Council","http://opendatacommunities.org/id/metropolitan-district-council/wolverhampton","Financial Services","Virgin Trains","09/10/15","171.00","0.00","Public Transport","4112"
"Wolverhampton City Council","http://opendatacommunities.org/id/metropolitan-district-council/wolverhampton","Financial Services","Virgin Trains","12/10/15","264.00","0.00","Public Transport","4112"
"Wolverhampton City Council","http://opendatacommunities.org/id/metropolitan-district-council/wolverhampton","Financial Services","Virgin Trains","12/10/15","155.60","0.00","Public Transport","4112"
"Wolverhampton City Council","http://opendatacommunities.org/id/metropolitan-district-council/wolverhampton","Financial Services","Virgin Trains","12/10/15","270.00","0.00","Public Transport","4112"
"Wolverhampton City Council","http://opendatacommunities.org/id/metropolitan-district-council/wolverhampton","Financial Services","Virgin Trains","12/10/15","139.50","0.00","Public Transport","4112"
"Wolverhampton City Council","http://opendatacommunities.org/id/metropolitan-district-council/wolverhampton","Financial Services","Virgin Trains","18/10/15","(16.80)","0.00","Public Transport","4112"
"Wolverhampton City Council","http://opendatacommunities.org/id/metropolitan-district-council/wolverhampton","Financial Services","Virgin Trains","20/10/15","354.00","0.00","Public Transport","4112"
"Wolverhampton City Council","http://opendatacommunities.org/id/metropolitan-district-council/wolverhampton","Financial Services","Virgin Trains","26/10/15","117.00","0.00","Public Transport","4112"
"Wolverhampton City Council","http://opendatacommunities.org/id/metropolitan-district-council/wolverhampton","Financial Services","Virgin Trains","26/10/15","175.50","0.00","Public Transport","4112"
"Wolverhampton City Council","http://opendatacommunities.org/id/metropolitan-district-council/wolverhampton","Investments","Virgintrains.co.uk","04/11/15","53.60","0.00","Public Transport","4112"
"Wolverhampton City Council","http://opendatacommunities.org/id/metropolitan-district-council/wolverhampton","Investments","Virgintrains.co.uk","09/11/15","53.60","0.00","Public Transport","4112"
"Wolverhampton City Council","http://opendatacommunities.org/id/metropolitan-district-council/wolverhampton","Investments","Virgintrains.co.uk","13/11/15","77.80","0.00","Public Transport","4112"
"Wolverhampton City Council","http://opendatacommunities.org/id/metropolitan-district-council/wolverhampton","Investments","Virgintrains.co.uk","18/11/15","(51.00)","0.00","Public Transport","4112"
"Wolverhampton City Council","http://opendatacommunities.org/id/metropolitan-district-council/wolverhampton","Financial Services","Virgintrains.co.uk","05/11/15","123.00","0.00","Public Transport","4112"
"Wolverhampton City Council","http://opendatacommunities.org/id/metropolitan-district-council/wolverhampton","Financial Services","Virgintrains.co.uk","05/11/15","309.00","0.00","Public Transport","4112"
"Wolverhampton City Council","http://opendatacommunities.org/id/metropolitan-district-council/wolverhampton","Financial Services","Virgintrains.co.uk","06/11/15","132.00","0.00","Public Transport","4112"
"Wolverhampton City Council","http://opendatacommunities.org/id/metropolitan-district-council/wolverhampton","Financial Services","Virgintrains.co.uk","18/11/15","123.50","0.00","Public Transport","4112"
"Wolverhampton City Council","http://opendatacommunities.org/id/metropolitan-district-council/wolverhampton","Financial Services","Virgintrains.co.uk","18/11/15","150.00","0.00","Public Transport","4112"
"Wolverhampton City Council","http://opendatacommunities.org/id/metropolitan-district-council/wolverhampton","Financial Services","Virgintrains.co.uk","18/11/15","139.50","0.00","Public Transport","4112"
"Wolverhampton City Council","http://opendatacommunities.org/id/metropolitan-district-council/wolverhampton","Financial Services","Virgintrains.co.uk","23/11/15","300.50","0.00","Public Transport","4112"
"Wolverhampton City Council","http://opendatacommunities.org/id/metropolitan-district-council/wolverhampton","Financial Services","Virgintrains.co.uk","25/11/15","496.00","0.00","Public Transport","4112"
"Wolverhampton City Council","http://opendatacommunities.org/id/metropolitan-district-council/wolverhampton","Financial Services","Virgintrains.co.uk","27/11/15","20.00","0.00","Public Transport","4112"
"Wolverhampton City Council","http://opendatacommunities.org/id/metropolitan-district-council/wolverhampton","Financial Services","Virgintrains.co.uk","27/11/15","66.00","0.00","Public Transport","4112"
"Wolverhampton City Council","http://opendatacommunities.org/id/metropolitan-district-council/wolverhampton","Financial Services","Virgintrains.co.uk","27/11/15","198.40","0.00","Public Transport","4112"
"Wolverhampton City Council","http://opendatacommunities.org/id/metropolitan-district-council/wolverhampton","Financial Services","Virgintrains.co.uk","27/11/15","37.00","0.00","Public Transport","4112"
"Wolverhampton City Council","http://opendatacommunities.org/id/metropolitan-district-council/wolverhampton","Financial Services","Virgintrains.co.uk","27/11/15","102.00","0.00","Public Transport","4112"
"Wolverhampton City Council","http://opendatacommunities.org/id/metropolitan-district-council/wolverhampton","Financial Services","Virgintrains.co.uk","27/11/15","139.50","0.00","Public Transport","4112"
"Wolverhampton City Council","http://opendatacommunities.org/id/metropolitan-district-council/wolverhampton","Financial Services","Virgintrains.co.uk","27/11/15","53.60","0.00","Public Transport","4112"
"Wolverhampton City Council","http://opendatacommunities.org/id/metropolitan-district-council/wolverhampton","Financial Services","Virgintrains.co.uk","27/11/15","132.00","0.00","Public Transport","4112"
"Wolverhampton City Council","http://opendatacommunities.org/id/metropolitan-district-council/wolverhampton","Governance","Virgintrains.co.uk","09/12/15","177.00","0.00","Public Transport","4112"
"Wolverhampton City Council","http://opendatacommunities.org/id/metropolitan-district-council/wolverhampton","Investments","Virgintrains.co.uk","02/12/15","121.50","0.00","Public Transport","4112"
"Wolverhampton City Council","http://opendatacommunities.org/id/metropolitan-district-council/wolverhampton","Financial Services","Virgintrains.co.uk","08/12/15","135.80","0.00","Public Transport","4112"
"Wolverhampton City Council","http://opendatacommunities.org/id/metropolitan-district-council/wolverhampton","Financial Services","Virgintrains.co.uk","08/12/15","(10.00)","0.00","Public Transport","4112"
"Wolverhampton City Council","http://opendatacommunities.org/id/metropolitan-district-council/wolverhampton","Financial Services","Virgintrains.co.uk","09/12/15","46.80","0.00","Public Transport","4112"
"Wolverhampton City Council","http://opendatacommunities.org/id/metropolitan-district-council/wolverhampton","Financial Services","Virgintrains.co.uk","29/12/15","135.00","0.00","Public Transport","4112"
"Wolverhampton City Council","http://opendatacommunities.org/id/metropolitan-district-council/wolverhampton","Financial Services","Virgintrains.co.uk","29/12/15","104.00","0.00","Public Transport","4112"
"Wolverhampton City Council","http://opendatacommunities.org/id/metropolitan-district-council/wolverhampton","Financial Services","Virgintrains.co.uk","29/12/15","275.50","0.00","Public Transport","4112"
"Wolverhampton City Council","http://opendatacommunities.org/id/metropolitan-district-council/wolverhampton","Financial Services","Virgintrains.co.uk","30/12/15","119.00","0.00","Public Transport","4112"
"Wolverhampton City Council","http://opendatacommunities.org/id/metropolitan-district-council/wolverhampton","Investments","Virgintrains.co.uk","05/01/16","54.10","0.00","Public Transport","4112"
"Wolverhampton City Council","http://opendatacommunities.org/id/metropolitan-district-council/wolverhampton","Investments","Virgintrains.co.uk","02/02/16","54.10","0.00","Public Transport","4112"
"Wolverhampton City Council","http://opendatacommunities.org/id/metropolitan-district-council/wolverhampton","Finance","Virgintrains.co.uk","13/01/16","283.00","0.00","Public Transport","4112"
"Wolverhampton City Council","http://opendatacommunities.org/id/metropolitan-district-council/wolverhampton","Finance","virgintrains.co.uk","13/01/16","71.60","0.00","Public Transport","4112"
"Wolverhampton City Council","http://opendatacommunities.org/id/metropolitan-district-council/wolverhampton","Finance","Virgintrains.co.uk","20/01/16","251.00","0.00","Public transport","4112"
"Wolverhampton City Council","http://opendatacommunities.org/id/metropolitan-district-council/wolverhampton","Finance","Virgintrains.co.uk","20/01/16","237.00","0.00","Public Transport","4112"
"Wolverhampton City Council","http://opendatacommunities.org/id/metropolitan-district-council/wolverhampton","Finance","Virgintrains.co.uk","21/01/16","179.00","0.00","Public Transport","4112"
"Wolverhampton City Council","http://opendatacommunities.org/id/metropolitan-district-council/wolverhampton","Finance","Virgintrains.co.uk","21/01/16","179.00","0.00","Public Transport","4112"
"Wolverhampton City Council","http://opendatacommunities.org/id/metropolitan-district-council/wolverhampton","Finance","Virgintrains.co.uk","21/01/16","51.20","0.00","Public Transport","4112"
"Wolverhampton City Council","http://opendatacommunities.org/id/metropolitan-district-council/wolverhampton","Finance","Virgintrains.co.uk","21/01/16","(169.00)","0.00","Public Transport","4112"
"Wolverhampton City Council","http://opendatacommunities.org/id/metropolitan-district-council/wolverhampton","Finance","Virgintrains.co.uk","26/01/16","47.55","0.00","Public Transport","4112"
"Wolverhampton City Council","http://opendatacommunities.org/id/metropolitan-district-council/wolverhampton","Finance","Virgintrains.co.uk","26/01/16","172.50","0.00","Public Transport","4112"
"Wolverhampton City Council","http://opendatacommunities.org/id/metropolitan-district-council/wolverhampton","Finance","Virgintrains.co.uk","26/01/16","119.00","0.00","Public Transport","4112"
"Wolverhampton City Council","http://opendatacommunities.org/id/metropolitan-district-council/wolverhampton","Finance","Virgintrains.co.uk","26/01/16","162.00","0.00","Public Transport","4112"
"Wolverhampton City Council","http://opendatacommunities.org/id/metropolitan-district-council/wolverhampton","Finance","Virgintrains.co.uk","26/01/16","116.55","0.00","Public transport","4112"
"Wolverhampton City Council","http://opendatacommunities.org/id/metropolitan-district-council/wolverhampton","Finance","Virgintrains.co.uk","01/02/16","18.20","0.00","Public transport","4112"
"Wolverhampton City Council","http://opendatacommunities.org/id/metropolitan-district-council/wolverhampton","Finance","Virgintrains.co.uk","01/02/16","169.00","0.00","Public Transport","4112"
"Wolverhampton City Council","http://opendatacommunities.org/id/metropolitan-district-council/wolverhampton","Investments","virgintrains.co.uk","03/02/16","120.65","0.00","Public Transport","4112"
"Wolverhampton City Council","http://opendatacommunities.org/id/metropolitan-district-council/wolverhampton","Finance","Virgintrains.co.uk","04/02/16","141.50","0.00","Public transport","4112"
"Wolverhampton City Council","http://opendatacommunities.org/id/metropolitan-district-council/wolverhampton","Finance","virgintrains.co.uk","04/02/16","11.80","0.00","Public Transport","4112"
"Wolverhampton City Council","http://opendatacommunities.org/id/metropolitan-district-council/wolverhampton","Finance","virgintrains.co.uk","05/02/16","(79.50)","0.00","Public Transport","4112"
"Wolverhampton City Council","http://opendatacommunities.org/id/metropolitan-district-council/wolverhampton","Finance","virgintrains.co.uk","05/02/16","(17.05)","0.00","Public transport","4112"
"Wolverhampton City Council","http://opendatacommunities.org/id/metropolitan-district-council/wolverhampton","Finance","virgintrains.co.uk","08/02/16","10.30","0.00","Public transport","4112"
"Wolverhampton City Council","http://opendatacommunities.org/id/metropolitan-district-council/wolverhampton","Finance","virgintrains.co.uk","08/02/16","(57.00)","0.00","Public transport","4112"
"Wolverhampton City Council","http://opendatacommunities.org/id/metropolitan-district-council/wolverhampton","Finance","virgintrains.co.uk","08/02/16","(42.00)","0.00","Public transport","4112"
"Wolverhampton City Council","http://opendatacommunities.org/id/metropolitan-district-council/wolverhampton","Finance","virgintrains.co.uk","17/02/16","116.55","0.00","Public transport","4112"
"Wolverhampton City Council","http://opendatacommunities.org/id/metropolitan-district-council/wolverhampton","Finance","virgintrains.co.uk","23/02/16","204.40","0.00","Public transport","4112"
"Wolverhampton City Council","http://opendatacommunities.org/id/metropolitan-district-council/wolverhampton","Finance","Walsall Council","18/02/16","12.00","0.00","Publications","9399"
"Wolverhampton City Council","http://opendatacommunities.org/id/metropolitan-district-council/wolverhampton","Investments","West Coast trains","21/10/15","6.67","0.00","Parking fees","4112"
"Wolverhampton City Council","http://opendatacommunities.org/id/metropolitan-district-council/wolverhampton","Investments","West Coast trains","12/10/15","1.33","0.00","Subsistence","4112"
"Wolverhampton City Council","http://opendatacommunities.org/id/metropolitan-district-council/wolverhampton","Financial Services","West Coast trains","21/10/15","4.95","0.00","Subsistence","4112"
"Wolverhampton City Council","http://opendatacommunities.org/id/metropolitan-district-council/wolverhampton","Financial Services","West Coast trains","26/10/15","53.60","0.00","Public Transport","4112"
"Wolverhampton City Council","http://opendatacommunities.org/id/metropolitan-district-council/wolverhampton","Investments","West Coast Trains","25/11/15","6.67","0.00","Parking Fees","4112"
"Wolverhampton City Council","http://opendatacommunities.org/id/metropolitan-district-council/wolverhampton","Investments","West Coast Trains","17/11/15","15.83","0.00","Public Transport","4112"
"Wolverhampton City Council","http://opendatacommunities.org/id/metropolitan-district-council/wolverhampton","Investments","West Coast Trains","12/11/15","5.95","0.00","Subsistence","4112"
"Wolverhampton City Council","http://opendatacommunities.org/id/metropolitan-district-council/wolverhampton","Investments","West Coast Trains","12/11/15","6.67","0.00","Parking Fees","4112"
"Wolverhampton City Council","http://opendatacommunities.org/id/metropolitan-district-council/wolverhampton","Investments","West Coast Trains","16/11/15","6.67","0.00","Parking Fees","4112"
"Wolverhampton City Council","http://opendatacommunities.org/id/metropolitan-district-council/wolverhampton","Investments","West Coast Trains","05/11/15","177.00","0.00","Public Transport","4112"
"Wolverhampton City Council","http://opendatacommunities.org/id/metropolitan-district-council/wolverhampton","Investments","West Coast Trains","05/11/15","6.67","0.00","Parking Fees","4112"
"Wolverhampton City Council","http://opendatacommunities.org/id/metropolitan-district-council/wolverhampton","Investments","West Coast Trains","02/12/15","6.67","0.00","Parking Fees","4112"
"Wolverhampton City Council","http://opendatacommunities.org/id/metropolitan-district-council/wolverhampton","Financial Services","West Coast Trains","19/11/15","16.20","0.00","Public Transport","4112"
"Wolverhampton City Council","http://opendatacommunities.org/id/metropolitan-district-council/wolverhampton","Pensions Operations","West Coast Trains","04/11/15","5.50","0.00","Subsistence","4112"
"Wolverhampton City Council","http://opendatacommunities.org/id/metropolitan-district-council/wolverhampton","Pensions Operations","West Coast Trains","04/11/15","3.90","0.00","Subsistence","4112"
"Wolverhampton City Council","http://opendatacommunities.org/id/metropolitan-district-council/wolverhampton","Investments","West Coast Trains","14/12/15","4.20","0.00","Public Transport","4112"
"Wolverhampton City Council","http://opendatacommunities.org/id/metropolitan-district-council/wolverhampton","Financial Services","West Coast Trains","31/12/15","134.00","0.00","Public Transport","4112"
"Wolverhampton City Council","http://opendatacommunities.org/id/metropolitan-district-council/wolverhampton","Investments","West Coast Trains","04/12/15","6.67","0.00","Parking Fees","4112"
"Wolverhampton City Council","http://opendatacommunities.org/id/metropolitan-district-council/wolverhampton","Investments","West Coast Trains","07/12/15","6.67","0.00","Parking Fees","4112"
"Wolverhampton City Council","http://opendatacommunities.org/id/metropolitan-district-council/wolverhampton","Investments","West Coast Trains","08/12/15","6.67","0.00","Parking Fees","4112"
"Wolverhampton City Council","http://opendatacommunities.org/id/metropolitan-district-council/wolverhampton","Investments","West Coast Trains","03/12/15","6.67","0.00","Parking Fees","4112"
"Wolverhampton City Council","http://opendatacommunities.org/id/metropolitan-district-council/wolverhampton","Investments","West Coast Trains","28/01/16","142.60","0.00","Public Transport","4112"
"Wolverhampton City Council","http://opendatacommunities.org/id/metropolitan-district-council/wolverhampton","Finance","West Coast Trains","13/01/16","36.50","0.00","Public transport","4112"
"Wolverhampton City Council","http://opendatacommunities.org/id/metropolitan-district-council/wolverhampton","Investments","West Coast Trains","28/01/16","7.50","0.00","Parking Fees","4112"
"Wolverhampton City Council","http://opendatacommunities.org/id/metropolitan-district-council/wolverhampton","Finance","West Coast Trains","21/01/16","179.00","0.00","Public Transport","4112"
"Wolverhampton City Council","http://opendatacommunities.org/id/metropolitan-district-council/wolverhampton","Investments","West Coast Trains","04/02/16","7.50","0.00","Parking Fees","4112"
"Wolverhampton City Council","http://opendatacommunities.org/id/metropolitan-district-council/wolverhampton","Investments","West Coast Trains","18/02/16","4.60","0.00","Public Transport","4112"
"Wolverhampton City Council","http://opendatacommunities.org/id/metropolitan-district-council/wolverhampton","Investments","West Coast Trains","08/12/15","5.21","0.00","Subsistence","4112"
"Wolverhampton City Council","http://opendatacommunities.org/id/metropolitan-district-council/wolverhampton","Investments","West Coast Trains","08/12/15","1.60","0.00","Subsistence","4112"
"Wolverhampton City Council","http://opendatacommunities.org/id/metropolitan-district-council/wolverhampton","Investments","West Coast Trains","03/12/15","1.71","0.00","Subsistence","4112"
"Wolverhampton City Council","http://opendatacommunities.org/id/metropolitan-district-council/wolverhampton","Investments","West Coast Trains","03/12/15","1.20","0.00","Subsistence","4112"
"Wolverhampton City Council","http://opendatacommunities.org/id/metropolitan-district-council/wolverhampton","Investments","West Coast Trains","28/01/16","3.42","0.00","Subsistence","4112"
"Wolverhampton City Council","http://opendatacommunities.org/id/metropolitan-district-council/wolverhampton","Investments","West Coast Trains","28/01/16","0.80","0.00","Subsistence","4112"
"Wolverhampton City Council","http://opendatacommunities.org/id/metropolitan-district-council/wolverhampton","Investments","West Coast Trains","04/02/16","1.71","0.00","Subsistence","4112"
"Wolverhampton City Council","http://opendatacommunities.org/id/metropolitan-district-council/wolverhampton","Investments","West Coast Trains","04/02/16","2.20","0.00","Subsistence","4112"
"Wolverhampton City Council","http://opendatacommunities.org/id/metropolitan-district-council/wolverhampton","Pensions Operations","West Coast Trains","25/01/16","3.25","0.00","Subsistence","4112"
"Wolverhampton City Council","http://opendatacommunities.org/id/metropolitan-district-council/wolverhampton","Pensions Operations","West Coast Trains","25/01/16","3.25","0.00","Subsistence","4112"
"Wolverhampton City Council","http://opendatacommunities.org/id/metropolitan-district-council/wolverhampton","Pensions Operations","West Coast Trains","29/01/16","3.25","0.00","Subsistence","4112"
"Wolverhampton City Council","http://opendatacommunities.org/id/metropolitan-district-council/wolverhampton","Pensions Operations","West Coast Trains","29/01/16","1.60","0.00","Subsistence","4112"
"Wolverhampton City Council","http://opendatacommunities.org/id/metropolitan-district-council/wolverhampton","Pensions Operations","West Coast Trains","15/01/16","5.50","0.00","Subsistence","4112"
"Wolverhampton City Council","http://opendatacommunities.org/id/metropolitan-district-council/wolverhampton","Investments","WH Smith","17/11/15","3.99","0.00","Subsistence","5943"
"Wolverhampton City Council","http://opendatacommunities.org/id/metropolitan-district-council/wolverhampton","Pensions Operations","WH Smith","06/11/15","4.67","0.00","Subsistence","5943"
"Wolverhampton City Council","http://opendatacommunities.org/id/metropolitan-district-council/wolverhampton","Finance","Worcestershire Council","12/01/16","11.00","0.00","Publications","9399"
"Wolverhampton City Council","http://opendatacommunities.org/id/metropolitan-district-council/wolverhampton","Governance","Birmingham City Council","30/12/15","12.00","0.00","Publications","9399"
"Wolverhampton City Council","http://opendatacommunities.org/id/metropolitan-district-council/wolverhampton","Governance","Birmingham City Council","30/12/15","(3.00)","0.00","Publications","9399"
"Wolverhampton City Council","http://opendatacommunities.org/id/metropolitan-district-council/wolverhampton","Investments","www.cabapp.net","11/12/15","11.84","0.00","Public Transport","4121"
"Wolverhampton City Council","http://opendatacommunities.org/id/metropolitan-district-council/wolverhampton","Finance","Kaplan Publishing","05/02/16","39.60","0.00","Training","8299"
"Wolverhampton City Council","http://opendatacommunities.org/id/metropolitan-district-council/wolverhampton","Pensions Operations","XC Trains Ltd","10/12/15","5.60","0.00","Public Transport","4112"
"Wolverhampton City Council","http://opendatacommunities.org/id/metropolitan-district-council/wolverhampton","Executive","XC Trains Ltd","04/12/15","4.30","0.00","Public Transport","4112"
"Wolverhampton City Council","http://opendatacommunities.org/id/metropolitan-district-council/wolverhampton","Executive","XC Trains Ltd","02/12/15","1.92","0.00","Subsistence","4112"
"Wolverhampton City Council","http://opendatacommunities.org/id/metropolitan-district-council/wolverhampton","Executive","XC Trains Ltd","02/12/15","3.20","0.00","Subsistence","4112"
"Wolverhampton City Council","http://opendatacommunities.org/id/metropolitan-district-council/wolverhampton","Pensions Operations","XC Trains Ltd","16/11/15","1.92","0.00","Subsistence","4112"
"Wolverhampton City Council","http://opendatacommunities.org/id/metropolitan-district-council/wolverhampton","Pensions Operations","XC Trains Ltd","18/11/15","4.58","0.00","Subsistence","4112"
"Wolverhampton City Council","http://opendatacommunities.org/id/metropolitan-district-council/wolverhampton","Executive","YWCA Central Club (The Bridge London)","05/01/16","2.40","0.00","Subsistence","5812"
